[Event "Indian Rapid Championship 2023-24"]
[Site "Nashik"]
[Date "2024.03.05"]
[Round "7.8"]
[White "Moksh Amit Doshi"]
[Black "Kherdekar Arnav"]
[Result "0-1"]
[ECO "A70"]
[WhiteElo "2353"]
[BlackElo "1846"]
[Annotator "TA"]
[PlyCount "86"]
[EventDate "2024.03.02"]
[EventType "swiss"]
[EventCountry "IND"]
[SourceTitle "playchess.com"]
[Source "ChessBase"]
[SourceQuality "1"]
[TimeControl "900+10"]

{[%evp 21,85,10,0,0,23,10,18,0,69,0,4,0,13,-7,0,-13,0,-16,-10,-9,-16,-155,-151,-169,-140,-222,-239,-218,-133,-260,-243,-276,-274,-284,-268,-237,-247,-254,-231,-237,-235,-231,-234,-240,-205,-433,-210,-529,-143,-150,-136,-151,-49,-73,-66,-145,0,0,0,0,0,-52,-58,-58,-50,-29999]} 1. d4 {[%emt 0:00:03]} Nf6 {[%emt 0:04:18]} 2. c4 {[%emt 0:00:17]} c5 {[%emt 0:00:01]} 3. d5 {[%emt 0:00:09]} e6 {[%emt 0:00:01]} 4. Nc3 {[%emt 0:00:13]} exd5 {[%emt 0:00:01]} 5. cxd5 {[%emt 0:00:02]} d6 {[%emt 0:00:02]} 6. e4 {[%emt 0:00:19]} g6 {[%emt 0:00:03]} 7. h3 {[%emt 0:00:02]} Bg7 {[%emt 0:00:02]} 8. Nf3 {[%emt 0:00:02]} O-O {[%emt 0:00:02]} 9. Bd3 {[%emt 0:00:01]} b5 {[%emt 0:00:01]} 10. Nxb5 {[%emt 0:00:16][%cal Bc3b5,Bb5a3,Ba3c4][%mdl 32]} Nxe4 {[%emt 0:00:05]} 11. O-O {[%emt 0:00:03]} a6 {[%emt 0:00:26]} 12. Na3 {[%emt 0:00:59]} Nf6 {[%emt 0:00:05][%cal Oc8b7]} 13. Nc4 $1 {[%emt 0:01:19]} Re8 {[%emt 0:00:03][%cal Oc8b7]} (13... Nxd5 $2 14. Be4 Nc7 15. Bxa8 $18 (15. Qxd6 Qxd6 16. Nxd6 Ra7 $16) (15. Nxd6 Ra7 $16)) 14. Bg5 {[%emt 0:01:32] The position is equal.} h6 {[%emt 0:00:42]} (14... Bb7 $11) 15. Bh4 {[%emt 0:00:05]} (15. Bf4 $14) 15... Bb7 $11 {[%emt 0:02:10]} 16. Bc2 {[%emt 0:00:05]} a5 {[%emt 0:01:23][%cal Ob8a6]} 17. Bg3 {[%emt 0:01:50]} Bf8 {[%emt 0:00:18]} 18. Ba4 {[%emt 0:00:33]} Re4 {[%emt 0:00:23]} 19. Ne3 {[%emt 0:00:59]} Nbd7 {[%emt 0:00:25]} 20. Bc2 {[%emt 0:01:20]} Re8 {[%emt 0:00:20]} 21. h4 {[%emt 0:01:35]} (21. Ba4 $11 {remains equal.}) 21... Nb6 $17 {[%emt 0:00:29]} 22. Qd2 {[%emt 0:00:46]} Nbxd5 {[%emt 0:00:47]} (22... Nfxd5 23. Nxd5 Nxd5 (23... Bxd5 24. h5 $15) 24. Rad1 $17) 23. Rad1 {[%emt 0:00:05]} (23. Nxd5 $17 {was necessary.} Bxd5 (23... Nxd5 24. h5 $15) 24. Ba4) 23... Nxe3 $19 {[%emt 0:01:39]} 24. fxe3 {[%emt 0:00:02]} d5 {[%emt 0:00:25]} 25. Qc3 {[%emt 0:00:11]} (25. Ne5 $17 Bd6 26. Nxf7 Kxf7 27. Qd3 Bxg3 28. Qxg6+ Ke6 29. Qxg3) 25... Qe7 {[%emt 0:00:24][%cal Of8g7]} 26. Bf4 {[%emt 0:00:43]} Bg7 {[%emt 0:00:09]} 27. Qa3 {[%emt 0:00:02]} Nh5 {[%emt 0:00:13]} 28. Ba4 {[%emt 0:00:06][%cal Bc2a4,Ba4b5,Bb5d3,Bd3b1,Bb1e4][%mdl 32]} Red8 {[%emt 0:00:42]} 29. Rfe1 {[%emt 0:00:01]} Rac8 {[%emt 0:00:26]} 30. Bh2 {[%emt 0:00:09]} Nf6 {[%emt 0:00:09]} 31. Bb5 {[%emt 0:00:09]} Ne4 {[%emt 0:00:30]} 32. Re2 {[%emt 0:00:28]} Bf6 {[%emt 0:01:06]} 33. Bf4 $2 {[%emt 0:00:40]} (33. Qxa5 {was worth a try.} c4 (33... Bxh4 34. Nxh4 Qxh4 35. Qb6 $17) 34. Qb6) 33... Kh7 {[%emt 0:00:07]} ({Not} 33... Bxh4 34. Qxa5 Bf6 35. Rf1 $19) (33... g5 $142 34. hxg5 hxg5) 34. h5 $2 {[%emt 0:00:08]} (34. Bh2 {is tougher.}) 34... gxh5 $2 {[%emt 0:00:22]} (34... g5 $19 {is more deadly.} 35. Bh2 g4) 35. Bd3 {[%emt 0:00:12]} Rg8 {[%emt 0:00:20]} 36. Qxa5 {[%emt 0:00:07]} c4 {[%emt 0:00:51]} (36... Kh8 $17 {Threatens to win with ...Ng3.} 37. Kh2 Rc6) 37. Bb1 {[%emt 0:00:29]} Rg6 {[%emt 0:00:11]} 38. Rxd5 {[%emt 0:00:40] [#]} (38. Be5 $15) 38... Bxd5 {[%emt 0:00:48]} (38... c3 $1 $17 {[%cal Rc3b2]} 39. Ne5 cxb2 (39... Bxd5 40. Qxd5 Bxe5 41. Qxe4 $17)) 39. Qxd5 $11 {[%emt 0:00:01]} c3 {[%emt 0:00:14]} 40. Bxe4 {[%emt 0:01:15] This pair of bishops is nice.} cxb2 $1 {[%emt 0:00:01][%cal Oc8c5] aiming for ...Rc5!} 41. Nd2 {[%emt 0:00:28]} (41. Bxg6+ $2 {loses.} fxg6 $19) ({White should play} 41. Re1 $11) 41... Rc1+ $15 {[%emt 0:00:13][%mdl 1024] Black has compensation.} 42. Kh2 {[%emt 0:00:01][%cal Oe2f2]} Bc3 {[%emt 0:00:12][%cal Re7h4] Some like it hot} 43. Nb1 $2 {[%emt 0:00:22][%mdl 8192] [#]} (43. g3 $15 Bxd2 44. Bxg6+ fxg6 45. Bd6) 43... Qh4# {[%emt 0:00:05] Weighted Error Value: White=0.59/Black=0.41.  Loses game:     	White=1     	---        Missed win:     	---       	Black=1      Mistake:       	White=8     	Black=4      Inaccurate:     	---       	Black=1      OK:         	White=7     	Black=11     Best:        	White=1     	Black=2      Strong:       	White=1     	Black=1} 0-1

[Event "Indian Rapid Championship 2023-24"]
[Site "Nashik"]
[Date "2024.03.05"]
[Round "7.9"]
[White "Arhan Chethan Anand"]
[Black "Mitrabha, Guha"]
[Result "1/2-1/2"]
[ECO "A47"]
[WhiteElo "2366"]
[BlackElo "2526"]
[Annotator "TA"]
[PlyCount "112"]
[EventDate "2024.03.02"]
[EventType "swiss"]
[EventCountry "IND"]
[SourceTitle "playchess.com"]
[Source "ChessBase"]
[SourceQuality "1"]
[TimeControl "900+10"]

{[%evp 27,112,46,77,78,80,90,91,87,103,106,112,115,118,112,100,96,128,101,102,88,69,83,68,62,96,103,95,66,53,48,39,39,73,79,74,79,95,0,0,0,287,279,445,425,481,420,431,294,288,161,180,180,222,218,221,116,116,0,212,168,157,79,113,70,70,70,70,70,70,70,70,48,48,38,48,0,0,0,56,0,0,0,0,0,0,0,8]} 1. d4 {[%emt 0:00:01]} Nf6 {[%emt 0:00:26]} 2. Bf4 {[%emt 0:00:03]} b6 {[%emt 0:00:04]} 3. e3 {[%emt 0:00:04]} Bb7 {[%emt 0:00:01]} 4. Nf3 {[%emt 0:00:03]} g6 {[%emt 0:00:02]} 5. Bd3 {[%emt 0:00:06]} Bg7 {[%emt 0:00:01]} 6. c4 {[%emt 0:00:02] A47: 1 d4 Nf6 2 Nf3 b6: Torre, London and Colle Systems.} d6 {[%emt 0:00:02]} 7. Nc3 {[%emt 0:00:06]} Nbd7 {[%emt 0:00:02]} 8. Bg3 {[%emt 0:00:24]} O-O {[%emt 0:00:05]} 9. O-O {[%emt 0:00:03]} Nh5 {[%emt 0:00:12]} 10. Bh4 {[%emt 0:00:04]} h6 {[%emt 0:00:11]} 11. Rc1 {[%emt 0:00:37]} Re8 $146 {[%emt 0:00:17]} ({Predecessor:} 11... f5 12. Nd2 a6 13. g4 g5 14. Bxf5 gxh4 15. Be6+ Kh8 16. gxh5 Nf6 17. Nd5 Nxd5 18. cxd5 {1-0 Pestka,M (1334)-Hutton,A (1112) IECC P email 1999}) 12. Nd2 {[%emt 0:01:14]} Nhf6 {[%emt 0:00:07]} 13. e4 {[%emt 0:01:24]} e5 {[%emt 0:00:27]} 14. d5 {[%emt 0:00:02]} Bc8 {[%emt 0:00:13]} 15. f3 {[%emt 0:00:21]} Nf8 {[%emt 0:00:27]} 16. b4 {[%emt 0:00:08]} a5 {[%emt 0:00:00]} 17. a3 {[%emt 0:00:02]} g5 {[%emt 0:00:02]} 18. Bf2 {[%emt 0:00:02]} Ng6 {[%emt 0:00:06]} 19. c5 {[%emt 0:01:54]} axb4 {[%emt 0:00:13]} 20. axb4 {[%emt 0:00:01]} bxc5 {[%emt 0:00:05]} 21. bxc5 {[%emt 0:00:02]} g4 {[%emt 0:00:07]} 22. cxd6 {[%emt 0:02:06]} cxd6 {[%emt 0:00:03]} 23. Bb5 {[%emt 0:00:27]} gxf3 {[%emt 0:00:34]} 24. Qxf3 {[%emt 0:00:17]} Rf8 {[%emt 0:00:29]} 25. Nc4 {[%emt 0:01:29]} Bg4 {[%emt 0:00:23]} 26. Qe3 {[%emt 0:00:04]} Nf4 {[%emt 0:00:22]} 27. Ra1 {[%emt 0:02:03]} Rxa1 {[%emt 0:01:06]} 28. Rxa1 {[%emt 0:00:01]} N6h5 {[%emt 0:00:26]} 29. Kh1 {[%emt 0:02:12]} Qg5 {[%emt 0:00:18]} 30. Rg1 $1 {[%emt 0:00:02]} (30. Nxd6 Qg6 $11) 30... Qg6 {[%emt 0:00:13]} 31. h3 {[%emt 0:00:32]} Bc8 {[%emt 0:00:30]} 32. g4 {[%emt 0:00:11]} (32. Kh2 $16) 32... Nf6 $11 {[%emt 0:00:17]} 33. Nxd6 {[%emt 0:00:02]} Nxg4 $2 {[%emt 0:00:25][%mdl 8192]} (33... Bxg4 $1 $11 34. hxg4 Nxg4 35. Rxg4 Qxg4) 34. Nxc8 $18 {[%emt 0:00:11]} Nxf2+ {[%emt 0:01:46]} (34... Nxh3 {is a better defense.} 35. Ne7+ Kh7 36. Nxg6 (36. Qxh3 $2 {is the wrong capture.} Nxf2+ 37. Kh2 Qxg1+ 38. Kxg1 Nxh3+ $19) 36... Nhxf2+ 37. Kg2 Nxe3+ 38. Kxf2 Rc8) 35. Qxf2 $18 {[%emt 0:00:01]} Nxh3 {[%emt 0:00:29]} 36. Ne7+ {[%emt 0:00:26]} Kh7 {[%emt 0:00:01]} 37. Qf5 {[%emt 0:00:09]} Qxf5 {[%emt 0:00:22]} 38. Nxf5 {[%emt 0:00:05]} (38. exf5 $142 {Strongly threatening Rf1.} Nxg1 39. Kxg1) 38... Nxg1 $18 {[%emt 0:00:02]} 39. Kxg1 {[%emt 0:00:02]} Bf6 {[%emt 0:00:07] [#]} 40. d6 $1 {[%emt 0:00:02]} Rb8 {[%emt 0:00:24]} 41. Ne7 {[%emt 0:00:39]} (41. Nd5 $18 Kg6 42. d7) 41... Rd8 $16 {[%emt 0:00:36] [#]} 42. Nf5 {[%emt 0:00:05]} (42. Ncd5 $1 $16 {[%cal Rd5f6]} Rxd6 43. Nc8 (43. Nf5 Re6 $11)) 42... Rb8 $1 $18 {[%emt 0:00:00]} 43. d7 {[%emt 0:00:15]} Bd8 {[%emt 0:00:34]} 44. Kg2 {[%emt 0:00:44]} (44. Nd6 $142) 44... Ba5 {[%emt 0:00:15]} 45. Nd6 {[%emt 0:00:30]} Bxc3 {[%emt 0:00:10]} 46. Nb7 $1 {[%emt 0:00:02]} Rxb7 {[%emt 0:00:59]} ({Avoid the trap} 46... Rg8+ $2 47. Kh3 $18) 47. d8=Q {[%emt 0:00:03]} Rxb5 {[%emt 0:00:01]} 48. Qc7 $1 {[%emt 0:00:01]} Rb2+ $1 {[%emt 0:00:38]} 49. Kh3 {[%emt 0:00:01]} (49. Kf3 $5 Bd4 $8 50. Qxf7+ Kh8 51. Kg3 $11) 49... Bd4 {[%emt 0:00:06]} 50. Qxf7+ {[%emt 0:00:02]} Kh8 {[%emt 0:00:00]} 51. Qf8+ {[%emt 0:00:04]} (51. Qe7 $14) 51... Kh7 $11 {[%emt 0:00:01]} 52. Qf7+ {[%emt 0:00:01]} (52. Kg4 $11) 52... Kh8 $14 {[%emt 0:00:01]} 53. Qe8+ {[%emt 0:00:28]} (53. Qe7 $14) 53... Kg7 $11 {[%emt 0:00:01]} 54. Qe7+ {[%emt 0:00:56]} Kg6 {[%emt 0:00:03]} 55. Qe6+ {[%emt 0:00:02]} Kg7 {[%emt 0:00:01]} 56. Qe7+ {[%emt 0:00:02]} Kg6 {[%emt 0:00:01]} 1/2-1/2

[Event "Indian Rapid Championship 2023-24"]
[Site "Nashik"]
[Date "2024.03.05"]
[Round "7.10"]
[White "Karthik Venkataraman"]
[Black "Wagh Suyog"]
[Result "0-1"]
[ECO "B12"]
[WhiteElo "2609"]
[BlackElo "2250"]
[Annotator "TA"]
[PlyCount "76"]
[EventDate "2024.03.02"]
[EventType "swiss"]
[EventCountry "IND"]
[SourceTitle "playchess.com"]
[Source "ChessBase"]
[SourceQuality "1"]
[TimeControl "900+10"]

{[%evp 9,75,20,12,12,10,7,18,0,18,8,7,0,0,0,20,16,25,22,29,12,16,-10,14,-8,0,0,0,0,0,0,14,0,0,-54,-48,-98,-68,-58,-73,-97,-91,-100,-93,-92,-84,-66,-51,-43,0,0,0,0,0,0,38,0,49,0,0,0,0,0,0,-5489,-641,-29995,-29996,-29999]} 1. e4 {[%emt 0:00:03]} c6 {[%emt 0:00:59]} 2. d4 {[%emt 0:00:04]} d5 {[%emt 0:00:01]} 3. e5 {[%emt 0:00:06]} Bf5 {[%emt 0:00:01]} 4. h4 {[%emt 0:00:02]} h5 {[%emt 0:00:01]} 5. Bd3 {[%emt 0:00:02]} Bxd3 {[%emt 0:00:04]} 6. Qxd3 {[%emt 0:00:02][%cal Oe5e6]} Qa5+ {[%emt 0:00:17]} 7. Nd2 {[%emt 0:00:03][%cal Oe5e6] e6! is the strong threat.} e6 {[%emt 0:00:04]} 8. Ngf3 {[%emt 0:00:02] The position is equal.} Nh6 {[%emt 0:00:05]} 9. O-O {[%emt 0:00:03]} Nf5 {[%emt 0:00:02]} 10. Nb3 {[%emt 0:00:01]} Qa6 {[%emt 0:00:33]} 11. Qc3 {[%emt 0:00:02]} Be7 {[%emt 0:01:07]} 12. Bg5 {[%emt 0:00:51]} Nd7 {[%emt 0:01:13]} 13. Bxe7 {[%emt 0:00:59]} Nxe7 {[%emt 0:00:03]} 14. Nc1 {[%emt 0:00:30]} Rc8 {[%emt 0:00:30][%cal Ba8c8,Bc8c5,Bc5c4,Bc4e4][%mdl 32]} 15. Nd3 {[%emt 0:00:03]} Nf5 {[%emt 0:00:53]} 16. Nf4 {[%emt 0:00:50]} c5 {[%emt 0:00:36]} 17. dxc5 {[%emt 0:00:41]} Rxc5 {[%emt 0:00:10]} 18. Qd2 {[%emt 0:00:02]} g6 {[%emt 0:00:22]} 19. c3 {[%emt 0:00:19]} O-O {[%emt 0:01:15]} 20. Rfe1 {[%emt 0:00:01]} Rc4 {[%emt 0:00:29]} 21. g3 {[%emt 0:03:06]} (21. b3 $11 Rc7 22. Rac1) 21... Nc5 $15 {[%emt 0:00:45]} 22. Ng5 {[%emt 0:00:15]} ({White should play} 22. Qe2 $15) 22... Ne4 {[%emt 0:01:52]} 23. Nxe4 {[%emt 0:03:08]} Rxe4 {[%emt 0:03:51]} 24. a3 {[%emt 0:00:11]} Qb6 {[%emt 0:00:21]} 25. Kh2 {[%emt 0:00:14]} Qc7 {[%emt 0:00:31]} 26. Nd3 {[%emt 0:00:30]} Kh7 {[%emt 0:00:10] Black is more active.} 27. f3 {[%emt 0:00:08]} Rxe1 {[%emt 0:00:26]} 28. Rxe1 {[%emt 0:00:01]} Rd8 {[%emt 0:00:02]} 29. g4 {[%emt 0:00:39]} hxg4 {[%emt 0:00:35]} (29... Nxh4 30. Kg3 $18) 30. fxg4 {[%emt 0:00:01]} Nh6 {[%emt 0:00:01]} 31. Nf2 {[%emt 0:01:07]} Qb6 {[%emt 0:00:33][%cal Ob6f2] [#] ...Qxf2+! would now be deadly.} 32. Kh3 {[%emt 0:02:14]} Qb5 {[%emt 0:00:44]} (32... d4 $11 {was preferrable.} 33. Ne4 dxc3 34. Qxc3 Qb5) 33. Ne4 {[%emt 0:00:48]} (33. Kg2 $14) 33... dxe4 $11 {[%emt 0:01:30]} 34. Qxd8 {[%emt 0:00:01]} Qxb2 {[%emt 0:00:01]} 35. Qd4 {[%emt 0:00:01]} Nxg4 $1 {[%emt 0:00:09]} 36. Qg1 {[%emt 0:00:50][%mdl 8192] [#] Prevents Qh2+.} (36. Kxg4 $2 {gets mated.} Qg2+ (36... Qxa3 $2 {loses.} 37. h5 $18) 37. Kf4 Qf3+ 38. Kg5 Qf5#) (36. Rg1 $11 Nh6 37. h5 gxh5 38. Qxe4+ Nf5 39. Qf3) 36... Nf2+ {[%emt 0:00:02]} (36... Qxc3+ $142 37. Qg3 Nf2+ (37... Qxe5 $2 {perishes.} 38. Qxg4 Qd6 39. a4 $18) 38. Kg2 Qxe1 39. Qxf2 Qxf2+ 40. Kxf2 Kh6) 37. Kg3 {[%emt 0:00:01]} Qxc3+ {[%emt 0:00:03]} 38. Kxf2 {[%emt 0:00:03]} Qf3# {[%emt 0:00:01] Weighted Error Value: White=0.44/Black=0.32.  Loses game:     	White=1     	---        Mistake:       	White=3     	Black=2      Inaccurate:     	White=3     	Black=3      OK:         	White=11    	Black=10     Best:        	---       	Black=2      Strong:       	---       	Black=1} 0-1

[Event "Indian Rapid Championship 2023-24"]
[Site "Nashik"]
[Date "2024.03.05"]
[Round "8.1"]
[White "Kherdekar Arnav"]
[Black "Ghosh, Diptayan"]
[Result "0-1"]
[ECO "C64"]
[WhiteElo "1846"]
[BlackElo "2559"]
[Annotator "TA"]
[PlyCount "84"]
[EventDate "2024.03.02"]
[EventType "swiss"]
[EventCountry "IND"]
[SourceTitle "playchess.com"]
[Source "ChessBase"]
[SourceQuality "1"]
[TimeControl "900+10"]

{[%evp 10,84,46,29,35,34,29,32,29,29,34,31,43,16,25,22,22,0,0,0,0,-6,10,-10,0,-20,-17,0,-1,-35,-35,-83,-18,-44,-16,-28,-25,-89,-66,-151,-124,-161,-178,-167,-162,-163,-150,-237,-235,-245,-235,-271,-235,-301,-232,-395,-404,-381,-385,-440,-421,-497,-470,-482,-479,-475,-457,-466,-464,-472,-460,-481,-474,-781,-772,-696,-693]} 1. e4 {[%emt 0:00:01]} e5 {[%emt 0:00:08]} 2. Nf3 {[%emt 0:00:03]} Nc6 {[%emt 0:00:02]} 3. Bb5 {[%emt 0:00:02]} a6 {[%emt 0:00:31]} 4. Ba4 {[%emt 0:00:02]} Bc5 {[%emt 0:00:07]} 5. c3 {[%emt 0:00:06]} Nge7 {[%emt 0:00:02]} 6. O-O {[%emt 0:00:17]} Ba7 {[%emt 0:00:01]} 7. d4 {[%emt 0:00:05]} Ng6 {[%emt 0:00:02]} 8. Bg5 {[%emt 0:00:03]} f6 {[%emt 0:00:01] White is slightly better.} 9. Be3 {[%emt 0:00:01]} O-O {[%emt 0:00:02]} 10. Nbd2 {[%emt 0:00:27]} d6 {[%emt 0:00:02]} 11. Bb3+ {[%emt 0:00:01]} Kh8 {[%emt 0:00:02]} 12. Re1 {[%emt 0:00:12]} Bd7 {[%emt 0:02:27]} 13. Nf1 {[%emt 0:00:17]} Bg4 {[%emt 0:00:19]} 14. d5 {[%emt 0:02:21]} Nce7 {[%emt 0:00:03]} 15. Bxa7 {[%emt 0:00:15]} Rxa7 {[%emt 0:00:02]} (15... Nh4 $5 16. N1d2 (16. Be3 $2 Bxf3 17. Qd3 Nxg2 $19) 16... Rxa7 $11) 16. h3 {[%emt 0:00:24]} Bd7 {[%emt 0:00:30]} 17. Ng3 {[%emt 0:00:23]} Ra8 {[%emt 0:01:30]} 18. c4 {[%emt 0:00:09]} f5 {[%emt 0:00:38]} 19. exf5 {[%emt 0:01:47]} Nxf5 {[%emt 0:00:02]} 20. Ne4 {[%emt 0:00:30]} (20. Nxf5 $15 {should be considered.} Bxf5 21. Rc1) 20... b6 {[%emt 0:03:20]} ({Black should try} 20... Nf4 $17) 21. Bc2 {[%emt 0:00:05]} Ngh4 {[%emt 0:00:21]} 22. Ned2 {[%emt 0:03:10]} Qf6 {[%emt 0:00:22][%cal Oh4g2] White must now prevent ...Nxg2!} 23. Re4 {[%emt 0:00:20]} (23. Qe2 $11) 23... Ng6 {[%emt 0:00:30] Black is more active. Black continues to play with concentration.} 24. Bd3 {[%emt 0:02:12]} ({Better is} 24. Re1 $15) 24... Nd4 {[%emt 0:01:47]} 25. Qf1 {[%emt 0:03:19]} Nxf3+ {[%emt 0:00:27]} 26. Nxf3 {[%emt 0:00:32] [#]} Bxh3 $1 {[%emt 0:00:13][%mdl 512]} 27. Re3 {[%emt 0:00:07]} Bf5 {[%emt 0:01:22]} 28. Nd2 {[%emt 0:00:29]} (28. Rae1 $17) 28... Bxd3 $19 {[%emt 0:00:23]} 29. Rxd3 {[%emt 0:00:02]} Nf4 {[%emt 0:00:02]} 30. Rg3 {[%emt 0:00:20]} Qh4 {[%emt 0:00:12] Strongly threatening ...Rf5.} 31. Nf3 {[%emt 0:00:56]} Qh6 {[%emt 0:00:03] aiming for ...Rf5.} 32. Rg4 $2 {[%emt 0:00:29] [#]} (32. Ng5) 32... Nh3+ $1 {[%emt 0:00:39][%mdl 512]} 33. gxh3 {[%emt 0:00:18]} Rxf3 {[%emt 0:00:02]} 34. Qg2 {[%emt 0:00:06]} Rxh3 {[%emt 0:00:34] ...Rf8 would now be deadly. Black is clearly winning.} 35. Re1 {[%emt 0:00:24]} Rf8 {[%emt 0:00:17]} 36. Rg3 {[%emt 0:00:13]} Rxg3 {[%emt 0:00:45]} 37. fxg3 {[%emt 0:00:10][%mdl 4096] Endgame. KQR-KQR} a5 {[%emt 0:00:03]} 38. Rf1 {[%emt 0:00:13]} Rf6 {[%emt 0:01:49]} 39. Rxf6 {[%emt 0:00:17]} gxf6 {[%emt 0:00:01]} (39... Qxf6 $2 40. Qh3 h6 41. Qc8+ Kh7 42. Qxc7 $19) 40. Qf1 {[%emt 0:00:06]} Qg5 {[%emt 0:00:03] Against Qf5} 41. Qh3 {[%emt 0:00:03]} (41. Qe1 $142) 41... f5 {[%emt 0:00:02]} 42. Qg2 {[%emt 0:00:24]} Kg7 {[%emt 0:00:14] Weighted Error Value: White=0.35/Black=0.09 (flawless) .  Mistake:       	White=6     	Black=1      Inaccurate:     	White=4     	Black=1      OK:         	White=9     	Black=19     Best:        	White=2     	Black=3      Brilliant:      	---       	Black=1} 0-1

[Event "Indian Rapid Championship 2023-24"]
[Site "Nashik"]
[Date "2024.03.05"]
[Round "8.2"]
[White "Aronyak Ghosh"]
[Black "Sammed Jaykumar, Shete"]
[Result "1/2-1/2"]
[ECO "A07"]
[WhiteElo "2517"]
[BlackElo "2404"]
[Annotator "TA"]
[PlyCount "35"]
[EventDate "2024.03.02"]
[EventType "swiss"]
[EventCountry "IND"]
[SourceTitle "playchess.com"]
[Source "ChessBase"]
[SourceQuality "1"]
[TimeControl "900+10"]

{[%evp 9,35,22,55,44,56,26,64,54,59,60,65,54,68,50,52,62,59,52,51,47,57,56,66,58,77,55,60,20]} 1. Nf3 {[%emt 0:00:07]} d5 {[%emt 0:00:05]} 2. g3 {[%emt 0:00:22]} c6 {[%emt 0:00:11]} 3. Bg2 {[%emt 0:00:05]} Bg4 {[%emt 0:00:05]} 4. h3 {[%emt 0:00:19]} Bf5 {[%emt 0:02:08]} 5. d3 {[%emt 0:00:11]} Nd7 {[%emt 0:00:08]} 6. Nh4 {[%emt 0:00:48]} Bg6 {[%emt 0:00:01]} 7. O-O {[%emt 0:00:15]} e6 {[%emt 0:00:53]} 8. e4 {[%emt 0:00:30]} Be7 {[%emt 0:00:47]} 9. Nxg6 {[%emt 0:00:02]} hxg6 {[%emt 0:00:01]} 10. Qe2 {[%emt 0:02:17]} dxe4 {[%emt 0:00:38]} 11. dxe4 {[%emt 0:00:24]} Qc7 {[%emt 0:00:00]} 12. Nd2 {[%emt 0:00:19]} Ngf6 {[%emt 0:01:27]} 13. a4 {[%emt 0:00:33]} O-O {[%emt 0:01:19]} 14. Nc4 {[%emt 0:00:11]} e5 {[%emt 0:00:09]} 15. Bd2 {[%emt 0:00:50]} Rfe8 {[%emt 0:00:21]} 16. Rfd1 {[%emt 0:00:26] White is more active.} a5 {[%emt 0:00:40]} 17. Be1 {[%emt 0:01:27]} Nf8 {[%emt 0:00:45]} 18. c3 {[%emt 0:02:33] Weighted Error Value: White=0.07 (flawless) /Black=0.09 (flawless) .  Inaccurate:     	White=2     	Black=1      OK:         	White=4     	Black=5} 1/2-1/2